fUSD/lending_fUSD_20240205
["ID","MTS","AMOUNT","RATE_DAILY","PERIOD"]
[313326856,1707161443793,-23907.1081927,0.00041067,2]
[313326857,1707161443803,-178.083743,0.00041067,2]
[313326858,1707161443812,-1701.0844383,0.00041067,2]
[313326859,1707161443821,-812.45294671,0.00041081,4]
[313326860,1707161443831,-2146.2836675,0.00041081,4]
[313326861,1707161443840,-302.02240745,0.00041081,4]
[313326862,1707161443850,-156.15910017,0.00041081,4]
[313326863,1707161443859,-250.53001348,0.00041081,4]
[313326864,1707161443869,-226.17802739,0.00041081,4]
[313326865,1707161443879,-405.24244888,0.00041083,4]
[313326866,1707161443889,-252.72062988,0.00041083,4]
[313326867,1707161443898,-33915.34121807,0.00041083,4]
[313326868,1707161443907,-1209.64822754,0.00041083,4]
[313326869,1707161443917,-459.00691006,0.00041083,5]
[313326870,1707161443927,-479.37643247,0.00041083,15]
[313326871,1707161443937,-54441.39603701,0.00041083,4]
[313326872,1707161443946,-10943.6189796,0.00041084,2]
[313326873,1707161443955,-183.68,0.00041085,10]
[313326874,1707161443967,-153.07,0.00041085,10]
[313326875,1707161443978,-765.37,0.00041085,10]
[313326876,1707161443988,-257.6856875,0.00041088,2]
[313326877,1707161443997,-658.8804898,0.00041088,2]
[313326878,1707161444007,-13365.2034966,0.00041088,2]
[313326879,1707161444016,-28342.1980408,0.00041088,2]
[313326880,1707161444025,-178.083743,0.00041088,2]
[313326881,1707161444034,-2014.1698813,0.00041088,2]
[313326882,1707161444043,-10455.71715306,0.00041093,4]
[313326883,1707161444053,-1460.73806979,0.00041094,2]
[313326884,1707161444063,-331.82563408,0.00041094,3]
[313326885,1707161444072,-242.85775935,0.00041094,3]
[313326886,1707161444083,-505.08131716,0.00041095,7]
[313326887,1707161444094,-517.03677607,0.00041095,7]
[313326888,1707161444104,-500.0,0.00041095,7]
[313326889,1707161444113,-547.85085198,0.00041095,7]
[313326890,1707161444123,-539.75916565,0.00041095,7]
[313326891,1707161444131,-518.38259589,0.00041095,7]
[313326892,1707161444141,-512.50111469,0.00041095,7]
[313326893,1707161444150,-500.0,0.00041095,7]
[313326894,1707161444160,-255.86123738,0.00041095,7]
[313326895,1707161444170,-520.85398482,0.00041095,7]
[313326896,1707161444179,-564.36743582,0.00041095,7]
[313326897,1707161444189,-516.77810386,0.00041095,7]
[313326898,1707161444199,-310.74655821,0.00041095,7]
[313326899,1707161444208,-521.2684887,0.00041095,7]
[313326900,1707161444217,-237.88015844,0.00041095,2]
[313326901,1707161444227,-500.0,0.00041095,7]
[313326902,1707161444236,-563.92996247,0.00041095,7]
[313326903,1707161444246,-475.06024089,0.00041095,7]
[313326904,1707161444255,-500.0,0.00041095,7]
[313326905,1707161444264,-500.0,0.00041095,7]
[313326906,1707161444274,-500.0,0.00041095,7]
[313326907,1707161444284,-500.0,0.00041095,7]
[313326908,1707161444293,-185.18948008,0.00041095,7]
[313326909,1707161444303,-500.0,0.00041095,7]
[313326910,1707161444312,-202.05616906,0.00041095,7]
[313326911,1707161444321,-579.22,0.00041095,7]
[313326912,1707161444330,-544.70537073,0.00041095,7]
[313326913,1707161444339,-500.0,0.00041095,7]
[313326914,1707161444349,-500.0,0.00041095,7]
[313326915,1707161444358,-500.0,0.00041095,7]
[313326916,1707161444368,-541.68788272,0.00041095,7]
[313326917,1707161444381,-485.07452678,0.00041095,7]
[313326918,1707161444423,-487.55443867,0.00041095,7]
[313326919,1707161444432,-323.55866386,0.00041095,7]
[313326920,1707161444442,-500.0,0.00041095,7]
[313326921,1707161444451,-514.1008692,0.00041095,7]
[313326922,1707161444460,-524.88,0.00041095,7]
[313326923,1707161444470,-500.0,0.00041095,7]
[313326924,1707161444479,-500.0,0.00041095,7]
[313326925,1707161444489,-500.0,0.00041095,7]
[313326926,1707161444498,-263.71245191,0.00041095,7]
[313326927,1707161444507,-907.38,0.00041095,7]
[313326928,1707161444516,-500.0,0.00041095,30]
[313326929,1707161444526,-500.0,0.00041095,7]
[313326930,1707161444535,-500.0,0.00041095,7]
[313326931,1707161444544,-563.07296697,0.00041095,7]
[313326932,1707161444553,-500.0,0.00041095,7]
[313326933,1707161444562,-500.0,0.00041095,7]
[313326934,1707161444572,-166.11207641,0.00041095,7]
[313326935,1707161444581,-512.23319572,0.00041095,7]
[313326936,1707161444590,-551.86446131,0.00041095,7]
[313326937,1707161444598,-518.38552324,0.00041095,7]
[313326938,1707161444607,-514.7892272,0.00041095,7]
[313326939,1707161444616,-537.52803141,0.00041095,7]
[313326940,1707161444625,-500.0,0.00041095,7]
[313326941,1707161444634,-649.98685882,0.00041095,7]
[313326942,1707161444644,-793.66,0.00041095,7]
[313326943,1707161444653,-168.91615553,0.00041095,7]
[313326944,1707161444662,-503.56595257,0.00041095,7]
[313326945,1707161444670,-500.0,0.00041095,7]
[313326946,1707161444680,-600.43569486,0.00041095,7]
[313326947,1707161444689,-500.0,0.00041095,7]
[313326948,1707161444697,-500.0,0.00041095,7]
[313326949,1707161444706,-150.0,0.00041095,2]
[313326950,1707161444716,-157.19477797,0.00041095,7]
[313326951,1707161444725,-500.0,0.00041095,7]
[313326952,1707161444734,-828.69,0.00041095,2]
[313326953,1707161444743,-514.37964078,0.00041095,7]
[313326954,1707161444752,-512.97480988,0.00041095,7]
[313326955,1707161444761,-524.18242607,0.00041095,7]
[313326956,1707161444772,-560.7672865,0.00041095,7]
[313326957,1707161444780,-566.27416484,0.00041095,7]
[313326958,1707161444790,-157.69947432,0.00041095,7]
[313326959,1707161444800,-500.0,0.00041095,7]
[313326960,1707161444809,-500.0,0.00041095,7]
[313326961,1707161444818,-541.17837029,0.00041095,7]
[313326962,1707161444827,-509.90218839,0.00041095,7]
[313326963,1707161444836,-636.6724316,0.00041095,7]
[313326964,1707161444845,-500.0,0.00041095,7]
[313326965,1707161444856,-508.21404373,0.00041095,7]
[313326966,1707161444866,-619.39782638,0.00041095,7]
[313326967,1707161444876,-536.17930379,0.00041095,7]
[313326968,1707161444885,-153.33675296,0.00041095,7]
[313326969,1707161444894,-194.61127976,0.00041095,10]
[313326970,1707161444904,-300.71708997,0.00041095,7]
[313326971,1707161444913,-436.11027449,0.00041095,7]
[313326972,1707161444922,-531.52912035,0.00041095,7]
[313326973,1707161444932,-578.46398458,0.00041095,7]
[313326974,1707161444941,-161.03105059,0.00041095,7]
[313326975,1707161444951,-500.0,0.00041095,7]
[313326976,1707161444961,-288.15965829,0.00041095,7]
[313326977,1707161444970,-500.0,0.00041095,7]
[313326978,1707161444980,-10000.0,0.00041095,3]
[313326979,1707161444989,-466.22439633,0.00041095,7]
[313326980,1707161444999,-632.58171871,0.00041095,7]
[313326981,1707161445009,-570.28834089,0.00041095,7]
[313326982,1707161445018,-192.30347212,0.00041095,7]
[313326983,1707161445027,-500.0,0.00041095,7]
[313326984,1707161445037,-173.57335268,0.00041095,7]
[313326985,1707161445046,-570.93379206,0.00041095,7]
[313326986,1707161445056,-500.0,0.00041095,7]
[313326987,1707161445066,-157.0891895,0.00041095,7]
[313326988,1707161445076,-500.0,0.00041095,7]
[313326989,1707161445089,-500.2293637,0.00041095,7]
[313326990,1707161445099,-500.0,0.00041095,20]
[313326991,1707161445110,-158.41525195,0.00041095,7]
[313326992,1707161445121,-203.61312246,0.00041095,7]
[313326993,1707161445131,-500.0,0.00041095,7]
[313326994,1707161445142,-530.68370045,0.00041095,7]
[313326995,1707161445152,-500.0,0.00041095,7]
[313326996,1707161445162,-500.0,0.00041095,2]
[313326997,1707161445173,-250.0,0.00041095,2]
[313326998,1707161445183,-500.0,0.00041095,7]
[313326999,1707161445193,-569.34697819,0.00041095,7]
[313327000,1707161445203,-500.0,0.00041095,7]
[313327001,1707161445215,-467.09727523,0.00041095,7]
[313327002,1707161445226,-500.0,0.00041095,7]
[313327003,1707161445236,-500.0,0.00041095,7]
[313327004,1707161445246,-614.40867228,0.00041095,7]
[313327005,1707161445256,-500.0,0.00041095,7]
[313327006,1707161445266,-500.0,0.00041095,7]
[313327007,1707161445276,-500.0,0.00041095,7]
[313327008,1707161445285,-204.81195228,0.00041095,7]
[313327009,1707161445295,-500.0,0.00041095,7]
[313327010,1707161445304,-176.89120007,0.00041095,7]
[313327011,1707161445314,-410.1143133,0.00041095,7]
[313327012,1707161445323,-534.21239823,0.00041095,5]
[313327013,1707161445332,-553.41054158,0.00041095,7]
[313327014,1707161445341,-500.0,0.00041095,7]
[313327015,1707161445351,-500.0,0.00041095,7]
[313327016,1707161445360,-561.03776196,0.00041095,7]
[313327017,1707161445369,-637.34756065,0.00041095,7]
[313327018,1707161445378,-184.20277007,0.00041095,7]
[313327019,1707161445387,-500.0,0.00041095,7]
[313327020,1707161445397,-399.05523974,0.00041095,7]
[313327021,1707161445406,-155.60805764,0.00041095,7]
[313327022,1707161445416,-500.0,0.00041095,7]
[313327023,1707161445425,-600.8780554,0.00041095,7]
[313327024,1707161445434,-590.04871361,0.00041095,7]
[313327025,1707161445443,-500.0,0.00041095,7]
[313327026,1707161445454,-185.58169061,0.00041095,7]
[313327027,1707161445466,-1000.0,0.00041095,30]
[313327028,1707161445475,-273.99229106,0.00041095,7]
[313327029,1707161445484,-156.861844,0.00041095,7]
[313327030,1707161445493,-511.740152,0.00041095,7]
[313327031,1707161445502,-760.42,0.00041095,7]
[313327032,1707161445511,-500.0,0.00041095,7]
[313327033,1707161445521,-465.09076184,0.00041095,7]
[313327034,1707161445530,-500.0,0.00041095,7]
[313327035,1707161445539,-500.0,0.00041095,7]
[313327036,1707161445550,-287.65436128,0.00041095,7]
[313327037,1707161445560,-500.0,0.00041095,7]
[313327038,1707161445569,-500.0,0.00041095,7]
[313327039,1707161445579,-500.0,0.00041095,7]
[313327040,1707161445589,-500.0,0.00041095,7]
[313327041,1707161445598,-500.0,0.00041095,7]
[313327042,1707161445607,-500.0,0.00041095,7]
[313327043,1707161445616,-540.11697183,0.00041095,7]
[313327044,1707161445626,-500.0,0.00041095,7]
[313327045,1707161445636,-500.0,0.00041095,7]
[313327046,1707161445645,-547.28639944,0.00041095,7]
[313327047,1707161445654,-204.06579292,0.00041095,7]
[313327048,1707161445663,-500.0,0.00041095,7]
[313327049,1707161445673,-500.0,0.00041095,7]
[313327050,1707161445682,-295.14399111,0.00041095,7]
[313327051,1707161445692,-500.0,0.00041095,7]
[313327052,1707161445701,-500.0,0.00041095,7]
[313327053,1707161445710,-535.47781787,0.00041095,7]
[313327054,1707161445721,-500.0,0.00041095,7]
[313327055,1707161445730,-500.0,0.00041095,7]
[313327056,1707161445739,-500.0,0.00041095,7]
[313327057,1707161445748,-500.0,0.00041095,7]
[313327058,1707161445758,-372.41357647,0.00041095,7]
[313327059,1707161445768,-500.0,0.00041095,7]
[313327060,1707161445777,-500.0,0.00041095,7]
[313327061,1707161445786,-500.0,0.00041095,7]
[313327062,1707161445932,-500.0,0.00041095,7]
[313327064,1707161445941,-234.61353666,0.00041095,7]
[313327066,1707161445952,-500.0,0.00041095,7]
[313327068,1707161445964,-500.0,0.00041095,7]
[313327070,1707161445972,-500.0,0.00041095,7]
[313327071,1707161445981,-500.0,0.00041095,7]
[313327073,1707161445990,-239.33700589,0.00041095,7]
[313327075,1707161445999,-500.0,0.00041095,7]
[313327077,1707161446009,-618.22715384,0.00041095,7]
[313327078,1707161446019,-500.0,0.00041095,7]
[313327079,1707161446028,-500.0,0.00041095,7]
[313327081,1707161446037,-500.0,0.00041095,7]
[313327083,1707161446046,-500.0,0.00041095,7]
[313327084,1707161446056,-646.84849048,0.00041095,7]
[313327086,1707161446065,-500.0,0.00041095,7]
[313327088,1707161446075,-500.0,0.00041095,7]
[313327089,1707161446085,-359.69212484,0.00041095,7]
[313327090,1707161446095,-500.0,0.00041095,7]
[313327091,1707161446104,-500.0,0.00041095,7]
[313327092,1707161446113,-500.0,0.00041095,7]
[313327093,1707161446123,-500.0,0.00041095,7]
[313327094,1707161446132,-182.72561332,0.00041095,7]
[313327095,1707161446141,-500.0,0.00041095,2]
[313327096,1707161446151,-500.0,0.00041095,7]
[313327097,1707161446161,-500.0,0.00041095,7]
[313327098,1707161446171,-649.81577051,0.00041095,7]
[313327099,1707161446182,-152.15481325,0.00041095,7]
[313327100,1707161446192,-1171.91,0.00041095,7]
[313327101,1707161446202,-500.0,0.00041095,7]
[313327102,1707161446213,-209.95489191,0.00041095,7]
[313327103,1707161446224,-518.49195699,0.00041095,2]
[313327104,1707161446235,-500.0,0.00041095,7]
[313327105,1707161446246,-500.0,0.00041095,7]
[313327106,1707161446257,-610.63321575,0.00041095,7]
[313327107,1707161446267,-500.0,0.00041095,7]
[313327108,1707161446277,-500.0,0.00041095,7]
[313327109,1707161446288,-500.0,0.00041095,7]
[313327110,1707161446299,-500.0,0.00041095,7]
[313327111,1707161446309,-500.0,0.00041095,7]
[313327112,1707161446319,-1193.87,0.00041095,7]
[313327113,1707161446330,-344.49646163,0.00041095,7]
[313327114,1707161446342,-500.0,0.00041095,7]
[313327115,1707161446352,-616.74617519,0.00041095,7]
[313327116,1707161446363,-500.0,0.00041095,7]
[313327117,1707161446374,-503.17816653,0.00041095,7]
[313327118,1707161446384,-500.0,0.00041095,7]
[313327119,1707161446395,-334.72603775,0.00041095,7]
[313327120,1707161446405,-500.0,0.00041095,7]
[313327121,1707161446415,-284.80350186,0.00041095,7]
[313327122,1707161446426,-373.62701166,0.00041095,7]
[313327123,1707161446436,-184.71894828,0.00041095,7]
[313327124,1707161446446,-579.7,0.00041095,7]
[313327125,1707161446455,-500.0,0.00041095,7]
[313327126,1707161446470,-369.18856625,0.00041095,7]
[313327127,1707161446479,-500.0,0.00041095,7]
[313327128,1707161446489,-500.0,0.00041095,7]
[313327129,1707161446499,-500.0,0.00041095,7]
[313327130,1707161446509,-1047.76,0.00041095,7]
[313327131,1707161446520,-500.0,0.00041095,7]
[313327132,1707161446529,-500.0,0.00041095,7]
[313327133,1707161446538,-188.6497124,0.00041095,7]
[313327134,1707161446548,-500.0,0.00041095,7]
[313327135,1707161446558,-500.0,0.00041095,7]
[313327136,1707161446567,-500.0,0.00041095,7]
[313327137,1707161446577,-500.0,0.00041095,7]
[313327138,1707161446588,-500.0,0.00041095,7]
[313327139,1707161446598,-500.0,0.00041095,7]
[313327140,1707161446609,-500.0,0.00041095,7]
[313327142,1707161446618,-500.0,0.00041095,7]
[313327144,1707161446628,-500.0,0.00041095,7]
[313327145,1707161446637,-1195.13,0.00041095,7]
[313327147,1707161446646,-500.0,0.00041095,7]
[313327149,1707161446655,-500.0,0.00041095,7]
[313327150,1707161446664,-602.56492336,0.00041095,7]
[313327151,1707161446673,-273.47340534,0.00041095,7]
[313327153,1707161446682,-536.36961329,0.00041095,7]
[313327155,1707161446690,-162.55342751,0.00041095,7]
[313327157,1707161446700,-500.0,0.00041095,7]
[313327158,1707161446709,-320.08,0.00041095,7]
[313327160,1707161446722,-500.0,0.00041095,7]
[313327162,1707161446732,-282.5326255,0.00041095,7]
[313327164,1707161446741,-519.57342942,0.00041095,7]
[313327166,1707161446750,-500.0,0.00041095,7]
[313327168,1707161446759,-500.0,0.00041095,7]
[313327170,1707161446769,-155.15087727,0.00041095,7]
[313327172,1707161446778,-467.32754048,0.00041095,7]
[313327174,1707161446787,-968.9,0.00041095,7]
[313327176,1707161446796,-500.0,0.00041095,7]
[313327177,1707161446805,-496.37993645,0.00041095,7]
[313327179,1707161446814,-160.2306937,0.00041095,7]
[313327181,1707161446824,-500.0,0.00041095,7]
[313327183,1707161446833,-500.0,0.00041095,7]
[313327185,1707161446842,-511.9659292,0.00041095,7]
[313327187,1707161446851,-500.0,0.00041095,7]
[313327189,1707161446862,-500.0,0.00041095,7]
[313327190,1707161446871,-500.0,0.00041095,7]
[313327192,1707161446881,-500.0,0.00041095,7]
[313327195,1707161446892,-169.16665283,0.00041095,7]
[313327197,1707161446901,-500.0,0.00041095,7]
[313327198,1707161446911,-500.0,0.00041095,7]
[313327200,1707161446920,-500.0,0.00041095,7]
[313327201,1707161446929,-408.17496596,0.00041095,7]
[313327202,1707161446939,-153.99793269,0.00041095,7]
[313327203,1707161446948,-500.0,0.00041095,7]
[313327204,1707161446958,-500.0,0.00041095,7]
[313327205,1707161446969,-161.91077884,0.00041095,7]
[313327207,1707161446978,-500.0,0.00041095,7]
[313327209,1707161446988,-500.0,0.00041095,7]
[313327211,1707161446997,-5000.0,0.00041095,30]
[313327212,1707161447006,-500.0,0.00041095,7]
[313327213,1707161447015,-500.0,0.00041095,7]
[313327214,1707161447024,-500.0,0.00041095,7]
[313327215,1707161447033,-153.42391478,0.00041095,7]
[313327216,1707161447042,-500.0,0.00041095,7]
[313327217,1707161447051,-500.0,0.00041095,2]
[313327218,1707161447059,-562.41219784,0.00041095,7]
[313327219,1707161447069,-500.0,0.00041095,7]
[313327220,1707161447078,-500.0,0.00041095,7]
[313327221,1707161447090,-511.8989894,0.00041095,7]
[313327222,1707161447099,-568.06845924,0.00041095,7]
[313327223,1707161447108,-565.70978445,0.00041095,7]
[313327224,1707161447118,-356.83669285,0.00041095,7]
[313327225,1707161447127,-500.0,0.00041095,7]
[313327226,1707161447136,-500.0,0.00041095,7]
[313327227,1707161447146,-928.39,0.00041095,7]
[313327228,1707161447154,-500.0,0.00041095,7]
[313327229,1707161447165,-500.0,0.00041095,7]
[313327230,1707161447175,-500.0,0.00041095,7]
[313327231,1707161447184,-500.0,0.00041095,7]
[313327232,1707161447194,-500.0,0.00041095,7]
[313327233,1707161447204,-500.0,0.00041095,7]
[313327234,1707161447213,-183.60181677,0.00041095,7]
[313327235,1707161447222,-898.8,0.00041095,7]
[313327236,1707161447232,-500.0,0.00041095,7]
[313327237,1707161447241,-553.44942876,0.00041095,7]
[313327238,1707161447250,-600.11371458,0.00041095,7]
[313327239,1707161447259,-500.0,0.00041095,7]
[313327240,1707161447268,-1227.72,0.00041095,7]
[313327241,1707161447278,-500.0,0.00041095,7]
[313327242,1707161447287,-500.0,0.00041095,7]
[313327243,1707161447297,-961.96,0.00041095,7]
[313327244,1707161447306,-522.58129086,0.00041095,7]
[313327245,1707161447316,-500.0,0.00041095,7]
[313327246,1707161447325,-500.0,0.00041095,7]
[313327247,1707161447335,-228.952979,0.00041095,7]
[313327248,1707161447344,-500.0,0.00041095,7]
[313327249,1707161447354,-393.73812143,0.00041095,7]
[313327250,1707161447363,-856.15,0.00041095,7]
[313327251,1707161447372,-1000.0,0.00041095,7]
[313327252,1707161447383,-500.0,0.00041095,7]
[313327253,1707161447394,-580.98431722,0.00041095,7]
[313327254,1707161447403,-500.0,0.00041095,7]
[313327255,1707161447413,-610.16,0.00041095,7]
[313327256,1707161447422,-154.76716032,0.00041095,7]
[313327257,1707161447431,-500.0,0.00041095,7]
[313327258,1707161447441,-500.0,0.00041095,7]
[313327259,1707161447451,-4208.35,0.00041095,7]
[313327260,1707161447460,-500.0,0.00041095,7]
[313327261,1707161447471,-251.76775449,0.00041095,7]
[313327262,1707161447480,-500.0,0.00041095,7]
[313327263,1707161447489,-500.0,0.00041095,7]
[313327264,1707161447499,-500.0,0.00041095,7]
[313327265,1707161447509,-500.0,0.00041095,7]
[313327266,1707161447518,-1147.57,0.00041095,7]
[313327267,1707161447528,-2424.94,0.00041095,7]
[313327268,1707161447537,-719.89,0.00041095,7]
[313327269,1707161447546,-500.0,0.00041095,7]
[313327270,1707161447556,-872.38,0.00041095,7]
[313327271,1707161447565,-1792.12,0.00041095,7]
[313327272,1707161447575,-500.0,0.00041095,7]
[313327273,1707161447584,-500.0,0.00041095,7]
[313327274,1707161447594,-500.0,0.00041095,7]
[313327275,1707161447603,-500.0,0.00041095,7]
[313327276,1707161447615,-500.0,0.00041095,7]
[313327277,1707161447625,-3479.72,0.00041095,7]
[313327278,1707161447635,-633.32606974,0.00041095,7]
[313327279,1707161447647,-619.0320996,0.00041095,7]
[313327280,1707161447657,-524.2,0.00041095,7]
[313327281,1707161447666,-500.0,0.00041095,7]
[313327282,1707161447675,-752.35,0.00041095,7]
[313327283,1707161447684,-500.0,0.00041095,7]
[313327284,1707161447694,-500.0,0.00041095,7]
[313327285,1707161447705,-663.67,0.00041095,7]
[313327286,1707161447715,-614.92,0.00041095,7]
[313327287,1707161447725,-181.34008511,0.00041095,7]
[313327288,1707161447735,-689.61,0.00041095,7]
[313327289,1707161447744,-500.0,0.00041095,7]
[313327290,1707161447755,-500.0,0.00041095,7]
[313327291,1707161447764,-500.0,0.00041095,7]
[313327292,1707161447773,-1447.39,0.00041095,7]
[313327293,1707161447783,-282.33277558,0.00041095,7]
[313327294,1707161447792,-500.0,0.00041095,7]
[313327295,1707161447801,-163.17684997,0.00041095,7]
[313327296,1707161447810,-500.0,0.00041095,7]
[313327297,1707161447819,-2445.56,0.00041095,7]
[313327298,1707161447828,-1389.3,0.00041095,7]
[313327299,1707161447837,-379.48999093,0.00041095,7]
[313327300,1707161447846,-500.0,0.00041095,7]
[313327301,1707161447855,-500.0,0.00041095,7]
[313327302,1707161447864,-2095.64,0.00041095,7]
[313327303,1707161447873,-500.0,0.00041095,7]
[313327304,1707161447882,-500.0,0.00041095,7]
[313327305,1707161447891,-152.73673771,0.00041095,7]
[313327306,1707161447900,-500.0,0.00041095,7]
[313327307,1707161447909,-500.0,0.00041095,7]
[313327308,1707161447918,-1082.37,0.00041095,7]
[313327309,1707161447928,-500.0,0.00041095,7]
[313327310,1707161447936,-203.41712261,0.00041095,7]
[313327311,1707161447946,-500.0,0.00041095,7]
[313327312,1707161447955,-500.0,0.00041095,7]
[313327313,1707161447964,-2824.19,0.00041095,7]
[313327314,1707161447973,-1032.35,0.00041095,7]
[313327315,1707161447983,-903.41,0.00041095,7]
[313327316,1707161447992,-500.0,0.00041095,7]
[313327317,1707161448001,-170.08664858,0.00041095,7]
[313327318,1707161448010,-500.0,0.00041095,7]
[313327319,1707161448019,-589.12085068,0.00041095,7]
[313327320,1707161448028,-4354.94,0.00041095,7]
[313327321,1707161448038,-500.0,0.00041095,7]
[313327322,1707161448047,-500.0,0.00041095,7]
[313327323,1707161448056,-500.0,0.00041095,7]
[313327324,1707161448065,-500.0,0.00041095,7]
[313327325,1707161448075,-553.13891852,0.00041095,7]
[313327326,1707161448086,-500.0,0.00041095,7]
[313327327,1707161448095,-500.0,0.00041095,7]
[313327328,1707161448104,-500.0,0.00041095,7]
[313327329,1707161448115,-500.0,0.00041095,7]
[313327330,1707161448125,-668.9,0.00041095,7]
[313327331,1707161448134,-607.08,0.00041095,7]
[313327332,1707161448144,-500.0,0.00041095,7]
[313327333,1707161448153,-996.39,0.00041095,7]
[313327334,1707161448163,-247.77553218,0.00041095,7]
[313327335,1707161448172,-500.0,0.00041095,7]
[313327336,1707161448181,-500.0,0.00041095,7]
[313327337,1707161448191,-500.0,0.00041095,7]
[313327338,1707161448201,-500.0,0.00041095,7]
[313327339,1707161448211,-568.52,0.00041095,7]
[313327340,1707161448221,-273.36283262,0.00041095,7]
[313327341,1707161448230,-2415.07,0.00041095,7]
[313327342,1707161448239,-500.0,0.00041095,7]
[313327343,1707161448248,-500.0,0.00041095,7]
[313327344,1707161448258,-503.54378161,0.00041095,7]
[313327345,1707161448267,-500.0,0.00041095,7]
[313327346,1707161448276,-500.0,0.00041095,7]
[313327347,1707161448285,-500.0,0.00041095,7]
[313327348,1707161448294,-1484.19,0.00041095,7]
[313327349,1707161448303,-831.07,0.00041095,7]
[313327350,1707161448313,-543.21,0.00041095,7]
[313327351,1707161448322,-3180.88,0.00041095,7]
[313327352,1707161448331,-784.02,0.00041095,7]
[313327353,1707161448340,-1184.54,0.00041095,7]
[313327354,1707161448350,-500.0,0.00041095,7]
[313327355,1707161448359,-500.0,0.00041095,7]
[313327356,1707161448369,-500.0,0.00041095,7]
[313327357,1707161448378,-500.0,0.00041095,7]
[313327358,1707161448387,-223.73615991,0.00041095,7]
[313327359,1707161448396,-500.0,0.00041095,7]
[313327360,1707161448405,-1320.35,0.00041095,7]
[313327361,1707161448414,-520.58,0.00041095,7]
[313327362,1707161448423,-500.0,0.00041095,7]
[313327363,1707161448433,-500.0,0.00041095,7]
[313327364,1707161448442,-500.0,0.00041095,7]
[313327365,1707161448451,-500.0,0.00041095,7]
[313327366,1707161448460,-500.0,0.00041095,7]
[313327367,1707161448471,-390.72354208,0.00041095,7]
[313327368,1707161448481,-500.0,0.00041095,7]
[313327369,1707161448490,-500.0,0.00041095,7]
[313327370,1707161448499,-500.0,0.00041095,7]
[313327371,1707161448509,-500.0,0.00041095,7]
[313327372,1707161448519,-500.0,0.00041095,7]
[313327373,1707161448529,-500.0,0.00041095,7]
[313327374,1707161448540,-500.0,0.00041095,7]
[313327375,1707161448550,-580.1,0.00041095,7]
[313327376,1707161448560,-727.02,0.00041095,7]
[313327377,1707161448569,-500.0,0.00041095,7]
[313327378,1707161448579,-500.0,0.00041095,7]
[313327379,1707161448589,-500.0,0.00041095,7]
[313327380,1707161448599,-584.85363771,0.00041095,7]
[313327381,1707161448610,-500.0,0.00041095,7]
[313327382,1707161448619,-500.0,0.00041095,7]
[313327383,1707161448629,-648.1,0.00041095,7]
[313327384,1707161448639,-500.0,0.00041095,7]
[313327385,1707161448650,-9649.71,0.00041095,7]
[313327386,1707161448661,-500.0,0.00041095,7]
[313327387,1707161448671,-500.0,0.00041095,7]
[313327388,1707161448682,-4246.7,0.00041095,7]
[313327389,1707161448691,-500.0,0.00041095,7]
[313327390,1707161448701,-5144.37,0.00041095,7]
[313327391,1707161448710,-575.28,0.00041095,7]
[313327392,1707161448720,-500.0,0.00041095,7]
[313327393,1707161448729,-500.0,0.00041095,7]
[313327394,1707161448739,-531.93,0.00041095,7]
[313327395,1707161448859,-500.0,0.00041095,7]
[313327396,1707161448883,-1687.02,0.00041095,7]